{"text_format":"2","workbook":"xlsx","n_sheets":1,"sheets":["Elekt. Trefferanzeigeanlagen"],"not_rendered":{"charts":0,"images":1,"macros":0,"external_links":1,"defined_names":65,"comments":0,"pivot_tables":0},"unopened":[],"bounds":{"document_bytes":16777216,"sheet_cells":100000,"run_cost":"one","rows_first":2000,"rows_last":500,"rows_between":2000,"halvings":0,"cell_chars":16384,"cell_head_chars":4096},"cells_cut":0,"cells_raw":0,"read":"whole","date_system":"1900"}

{"sheet":"Elekt. Trefferanzeigeanlagen","index":0,"n_rows":176,"n_cols":22,"rows_kept":176,"cut":false,"hidden":false,"merged":[[46,32,46,50],[19,1,19,19],[20,1,20,19],[21,1,21,19],[22,1,22,19],[23,1,23,19],[24,1,24,19],[44,17,44,18],[40,7,40,9],[39,32,39,50],[40,32,40,50],[41,32,41,50],[42,32,42,50],[43,32,43,50],[44,32,44,50],[45,32,45,50],[40,13,40,16],[40,17,40,19],[34,16,34,19],[37,1,37,19],[11,0,11,20],[44,15,44,16],[42,13,42,14],[44,13,44,14],[42,17,42,18],[28,10,28,19],[29,10,29,19],[31,10,31,19],[32,10,32,19],[52,5,52,7],[55,5,55,7],[52,10,52,19],[55,10,55,19],[12,0,12,20],[14,17,14,19],[44,1,44,6],[50,1,50,2],[50,5,50,6],[50,10,50,19],[52,1,52,2],[34,11,34,14],[42,15,42,16],[14,14,14,16],[55,1,55,2],[53,1,53,2],[53,5,53,6],[53,10,53,19],[40,10,40,12],[35,16,35,19],[35,11,35,14],[26,10,26,19],[27,10,27,19],[73,0,73,20],[81,1,84,2],[81,3,83,5],[81,6,82,10],[81,11,84,14],[81,16,83,18],[81,19,81,20],[82,19,82,20],[83,6,83,10],[84,16,84,18],[84,19,84,20],[85,1,85,2],[85,3,85,5],[85,6,85,10],[85,12,85,13],[85,14,85,15],[85,16,85,18],[85,19,85,20],[86,1,87,2],[86,3,87,5],[86,6,87,10],[86,12,86,13],[86,16,86,17],[86,19,86,20],[87,12,87,13],[87,16,87,17],[87,19,87,20],[88,16,88,17],[88,19,88,20],[89,16,89,17],[89,19,89,20],[90,16,90,17],[90,19,90,20],[91,16,91,17],[91,19,91,20],[92,16,92,17],[92,19,92,20],[93,16,93,17],[93,19,93,20],[94,16,94,17],[94,19,94,20],[96,8,96,18],[96,19,96,20],[99,2,99,14],[102,1,102,20],[143,0,143,20],[169,2,169,20],[171,0,171,1],[173,2,173,20],[175,1,175,19],[144,0,144,20],[145,0,145,20],[147,0,147,20],[151,2,151,19],[158,3,158,19],[160,2,160,20],[164,0,164,1],[166,2,166,20],[167,0,167,1]]}
{"$rows_empty":11}
["Versicherung von elektronischen Trefferanzeigeanlagen\n(Police 410.894.4851)\n        anlagen (Police Nr. 410'894.4851)"]
["Antragsformular für Mitglieder der USS (USS Versicherungen Genossenschaft)"]
[]
[{"$nulls":14},"Referenznummer:"]
[]
[null,"Antrag  (gilt mit dem Visa der Zentralstelle als Versicherungspolice)"]
[]
[null,"Beschreibung der Anlage : Marke, Typ, Serien-Nr., Baujahr oder Anlageliste"]
{"$rows_empty":7}
[null,null,"Anschrift des versicherten Vereins"]
[]
[]
[]
[]
[null,null,"Versicherungsort (PLZ, Ort, Strasse Nr.)"]
[]
[]
[{"$nulls":11},"Beginn der Versicherung",{"$nulls":4},"Ende der Versicherung"]
[null,null,"Versicherungsdauer (max. 5 Jahre)",null,"jour, mois, année"]
[]
[null,"Der Versicherungsnehmer erklärt die Allgemeinen Bedingungen, Ausgabe 01.1989 und einen Auszug aus den Besonderen Bestimmungen erhalten zu haben."]
[]
[null,"Gesamtprämie für die elektronischen Trefferanzeigeanlagen"]
[{"$nulls":7},"VS",null,null,"Nettoprämie",null,null,"Eidg. Stempelabgabe",null,null,null,"Gesamtprämie",null,null,null,{"$f":"SUM(S38:T39)","v":0}]
[{"$nulls":13},0.05]
[" ","Elektronische Trefferanzeigeanlagen",{"$nulls":5},"CHF",{"$f":"B86","v":0},null,"CHF      ",{"$f":"MROUND(V100,0.1)","v":0},null,0.05,null,{"$f":"MROUND((L43*N42),0.1)","v":0},null,"CHF      ",null,{"$f":"+L43+P43","v":0}]
[]
[null,"Transport der Zielscheiben",{"$nulls":5},{"$f":"IF(J107=\"x\",\"CHF\",\"\")","v":""},{"$f":"IF(J107=\"x\",B86,\"nicht versichert\")","v":"nicht versichert"},null,{"$f":"IF(J107=\"x\",\"CHF\",\"\")","v":""},{"$f":"IF(J107=\"x\",T97,\"nicht versichert\")","v":"nicht versichert"},null,0.05,null,{"$f":"IF(J107=\"x\",MROUND((L45*N45),0.1),0)","v":0},null,"CHF      ",null,{"$f":"IF(L45=\"nicht versichert\",0,+L45+P45)","v":0}]
[]
[]
[]
[null,"Gesamtprämie",{"$nulls":15},"CHF      ",null,{"$f":"SUM(T43:T48)","v":0}]
[]
[null,"Ort",null,null,null,"Datum",{"$nulls":4},"Unterschrift vom Versicherungsnehmer / Organisators",{"$nulls":10},{"$f":"IF(C51=\"\",0,#REF!)","v":0}]
[]
[{"$nulls":21},{"$f":"IF(C53=\"\",0,#REF!)","v":0}]
[null,"Ort",null,null,null,"Datum",{"$nulls":4},"Visa der Zentralstelle USS",{"$nulls":10},{"$f":"SUM(V51:V53)","v":0}]
{"$rows_empty":19}
["Kalkulationstabelle für elektronischen Trefferanzeigeanlagen"]
[]
[]
[null,"Elektr. Trefferanzeigeanlagen (BB1)"]
[null,"Selbstbehalt pro Ereignis     CHF 200.00"]
[]
[]
[]
[null,"Versicherungssumme = Neuwert (aktuelle Preisliste) CHF",null,"Prämien-\nsatz",null,null,"Jahresprämie\n(minimum)",{"$nulls":4},"Kurzfristige Versicherung für max:",{"$nulls":4},"Einmal-\nprämie\n(minimum)",null,null,"Gesamt-"]
[{"$nulls":19},"prämie"]
[{"$nulls":6},"CHF 200.--"]
[{"$nulls":5},4.0000000000000001E-3]
[null,null,null,"4.00 ‰",null,null,{"$f":"IF(B86*F85>=200,B86*F85,200)","v":200},{"$nulls":9},"CHF",null,null,"CHF"]
[null,3,{"$nulls":10},"1 Monat",null,0.2,null,80,null,null,{"$f":"IF(L87=\"\",\"\",(IF(L87=\"x\",MROUND($G$86*O87,0.1))))","v":""}]
[{"$nulls":12},"2 Monate",null,0.3,null,90,null,null,{"$f":"IF(L88=\"\",\"\",(IF(L88=\"x\",MROUND($G$86*O88,0.1))))","v":""}]
[null,null,{"$f":"#REF!*O87","v":{"$error":"#REF!"}},{"$f":"IF(L87=\"\",0,C89)","v":0},{"$f":"IF(D89>0,C89,0)","v":0},{"$nulls":7},"3 Monate",null,0.4,null,100,null,null,""]
[null,null,{"$f":"#REF!*O88","v":{"$error":"#REF!"}},0,{"$f":"IF(D90>0,C90,0)","v":0},{"$nulls":7},"4 Monate",null,0.5,null,110,null,null,""]
[null,null,{"$f":"#REF!*O89","v":{"$error":"#REF!"}},0,0,{"$nulls":7},"5 Monate",null,0.6,null,120,null,null,""]
[null,null,{"$f":"#REF!*O90","v":{"$error":"#REF!"}},0,0,{"$nulls":7},"6 Monate",null,0.7,null,140,null,null,""]
[null,null,{"$f":"#REF!*O91","v":{"$error":"#REF!"}},0,0,{"$nulls":7},"7 Monate",null,0.8,null,160,null,null,""]
[null,null,{"$f":"#REF!*O92","v":{"$error":"#REF!"}},0,0,{"$nulls":7},"8 Monate",null,0.9,null,180,null,null,""]
[null,null,{"$f":"#REF!*O93","v":{"$error":"#REF!"}},0,0,{"$nulls":7},"9-12 Monate",null,1,null,200,null,null,""]
[null,null,{"$f":"#REF!*O94","v":{"$error":"#REF!"}},0,0]
[null,null,{"$f":"#REF!*O95","v":{"$error":"#REF!"}},0,0,null,null,null,"Prämie Transportdeckung gemäss Ziff. 243 ",{"$nulls":10},{"$f":"IF(J107=\"x\",MROUND(V100*30%,0.1),\"\")","v":""}]
[null,null,{"$f":"#REF!*O96","v":{"$error":"#REF!"}}]
[]
[null,null,"Totalprämie resp. Jahresprämie oder Einmalprämie (ohne eidg. Stempel) für die Versicherung von elektronischen Trefferanzeigeanlagen ",{"$nulls":13},"CHF",null,null,{"$f":"SUM(T87:U98)","v":0},null,{"$f":"SUM(T87:U95)","v":0}]
[]
[]
[null,"Transportdeckung für Elemente der elektronischen Trefferanzeigeanlagen (BB2)"]
[null,"Der Hintransport zum Versicherungsort sowie der unmittelbare Wegtransport sind versichert."]
[null,"Selbstbehalt pro Ereignis    CHF 200.00"]
[]
[null,"Ist die Deckung gewünscht? ",{"$nulls":8},"Ja"]
{"$rows_empty":36}
["Auszug aus den Besonderen Bestimmungen der Police Nr. 410'894.4851"]
["für die Deckung von elektronischen Trefferanzeigeanlagen"]
["für die der USS angeschlossenen Schiessvereine"]
[]
["Anwendbare Allgemeine Grundbedingungen (AVB): Techn. Anlagen, Ausgabe 01.1989"]
[]
[]
[null,1,"Gegenstand der Versicherung"]
[null,null,"In Präzisierung von Art. 1, Ziff. 1 AVB erstreckt sich die Versicherung ausschliesslich auf elektroni-sche Trefferanzeigeanlagen, welche der Zentralstelle der USS von Schützenvereinen angemeldet worden sind."]
[]
[null,2,"Beginn und Ende der Versicherung für die einzelnen Anlagen"]
[null,2.1,"Der Versicherungsschutz beginnt:"]
[]
[null,null,"\u009f","an dem in der Anmeldung vereinbarten Tag,"]
[]
[null,null,"\u009f","frühestens jedoch, nachdem die zu versichernde Anlage am Versicherungsort betriebsfertig aufgestellt ist."]
[]
[null,2.2000000000000002,"Der Versicherungsschutz von kürzerer Dauer als 12 Monate endet mit dem in der Anmeldung genannten Datum. Ist die Versicherung auf ein Jahr oder eine längere Dauer abgeschlossen, verlängert sie sich jeweils stillschweigend um ein Jahr, wenn sie nicht mindestens 3 Monate vor Ablauf schriftlich gekündigt wird."]
[]
[null,2.2999999999999998,"Mit Aufhebung des Rahmenvertrags erlischt der Versicherungsschutz auf sämtlichen versicherten Anlagen."]
[]
["CC 70 ",null,"Ausschluss von Schäden als Folge von Terrorismus"]
[]
[null,null,"Nicht versichert unter diesem Vertrag und allfälligen Nachträgen sind Schäden jeder Art, ohne Rücksicht auf mitwirkende Ursachen, die unmittelbar oder mittelbar auf Terrorismus zurückzuführen sind. \n\nAls Terrorismus gilt jede Gewaltandrohung zur Erreichung politischer, religiöser, ethnischer oder ideologischer Ziele. Die Gewaltandrohung ist geeignet, Angst oder Schreken in der Bevölkerung oder Teilen der Bevölkerung zu verbreiten oder auf eine Regierung oder staatliche Einrichtung Einfluss zu nehmen. \n\nNicht unter den Begriff Terrorismus fallen Innere Unruhen. Als solche gelten Gewalttätigkeiten gegen Personen oder Sachen, die anlässlich von Zusammenrottung, Krawall oder Tumult begangen werden damit im Zusammenhang stehende Plünderungen. \n"]
["CC 72 ",null,"Ausschluss innere Schäden"]
[]
[null,null,"Nicht versichert sind Schäden an Anlagen oder Teilen davon, soweit sie im Ausfall einzelner Bauelemente, Baugruppen und Bauteile bestehen, es sei denn, sie seien nachweislich durch ein von aussen auf die Anlage einwirkendes Ereignis oder durch einen in der Anlage entstehenden Brand verursacht worden."]
[]
["CC 74",null,"Sachen in Zirkulation (Transport) "]
[]
[null,null,"In Erweiterung von Art. 9 der AVB sind Schäden an den Elementen der elektronischen Trefferanzeigeanlagen während des Transportes innerhalb der Schweiz gedeckt."]
[]
[null,"*    *    *"]